bitfinex/quotes_ETHUSD_20250214
["timestamp","ask_amount","ask_price","bid_price","bid_amount"]
[1739523521609,7.78728951,2709.1,2708.8,3.69166]
[1739523521778,7.78728951,2709.1,2709.0,0.1112041]
[1739523521981,2.46728951,2709.1,2709.0,0.1112041]
[1739523522524,2.46728951,2709.1,2708.8,3.69166]
[1739523522724,2.46728951,2709.1,2709.0,0.1112041]
[1739523522970,2.46728951,2709.1,2708.9,0.11129346]
[1739523523132,2.46728951,2709.1,2709.0,0.1112041]
[1739523523525,2.46728951,2709.1,2708.8,3.69166]
[1739523523726,2.46728951,2709.1,2709.0,0.1112041]
[1739523523925,2.46728951,2709.1,2708.9,0.11129346]
[1739523524136,2.46728951,2709.1,2709.0,0.1112041]
[1739523524332,2.45978951,2709.1,2709.0,0.1112041]
[1739523524576,2.45978951,2709.1,2708.8,3.6916]
[1739523524876,2.45978951,2709.1,2709.0,3.8025941]
[1739523525079,2.45978951,2709.1,2708.8,0.753344]
[1739523525080,6.096,2709.3,2708.9,3.80274346]
[1739523525411,5.32,2709.3,2709.1,3.69118]
[1739523525886,5.32,2709.3,2709.2,0.1110254]
[1739523526059,6.00978951,2709.4,2709.2,3.8020954]
[1739523526267,6.00978951,2709.4,2709.2,0.1110254]
[1739523526429,6.00978951,2709.4,2709.2,3.8021154]
[1739523526622,6.00978951,2709.4,2709.2,0.1110254]
[1739523528619,6.00978951,2709.4,2709.0,3.69136]
[1739523528818,6.00978951,2709.4,2709.3,0.11093605]
[1739523529019,6.00978951,2709.4,2708.9,7.38289]
[1739523529327,6.00978951,2709.4,2709.3,0.11093605]
[1739523529527,6.00978951,2709.4,2708.9,7.38289]
[1739523530052,6.00978951,2709.4,2709.0,0.1112041]
[1739523530476,9.70065951,2709.4,2709.0,0.1112041]
[1739523532622,6.00978951,2709.4,2708.9,3.69144]
[1739523532838,6.00978951,2709.4,2709.0,3.6913]
[1739523533043,6.00978951,2709.4,2709.0,0.1112041]
[1739523533243,9.70069951,2709.4,2709.0,0.1112041]
[1739523533470,9.70069951,2709.4,2708.9,7.38289]
[1739523533639,9.70069951,2709.4,2709.1,0.11111475]
[1739523533848,9.70069951,2709.4,2708.9,3.69144]
[1739523534154,9.70069951,2709.4,2709.2,0.1110254]
[1739523534346,9.70069951,2709.4,2708.9,3.69144]
[1739523534542,3.69851,2709.3,2708.8,3.69162]
[1739523534784,0.7624,2709.2,2708.9,0.11129346]
[1739523535446,0.7624,2709.2,2708.9,3.80279346]
[1739523535647,1.19208275,2709.1,2708.9,0.11129346]
[1739523537784,1.19208275,2709.1,2708.8,3.69165]
[1739523537961,1.19208275,2709.1,2709.0,0.11101249]
[1739523538795,1.19208275,2709.1,2708.8,3.69165]
[1739523538935,1.19208275,2709.1,2709.0,0.11101249]
[1739523539391,1.19208275,2709.1,2708.8,3.69165]
[1739523539556,1.19208275,2709.1,2709.0,0.11101249]
[1739523539911,1.19208275,2709.1,2708.8,3.69165]
[1739523540244,1.19208275,2709.1,2708.9,0.11110186]
[1739523540689,4.88338275,2709.1,2708.7,0.15]
[1739523540836,1.19208275,2709.1,2709.0,0.11101249]
[1739523541049,1.19208275,2709.1,2708.7,0.15]
[1739523541261,1.19208275,2709.1,2709.0,0.11101249]
[1739523541789,1.19208275,2709.1,2708.8,3.69164]
[1739523541988,1.19208275,2709.1,2709.0,0.11101249]
[1739523542183,1.19208275,2709.1,2708.8,3.69164]
[1739523542482,1.19208275,2709.1,2708.9,0.45480682]
[1739523543280,1.19208275,2709.1,2708.9,0.11110186]
[1739523544567,1.19208275,2709.1,2708.9,3.80257186]
[1739523544885,1.19208275,2709.1,2708.9,0.11110186]
[1739523548447,1.19208275,2709.3,2708.9,3.80250186]
[1739523548781,1.19208275,2709.3,2708.9,0.87550905]
[1739523548987,1.19208275,2709.3,2708.9,0.11110186]
[1739523549189,1.19208275,2709.3,2709.0,3.69129]
[1739523549544,1.19208275,2709.3,2709.1,3.80210314]
[1739523549749,1.19208275,2709.3,2709.1,0.11092314]
[1739523549949,1.19208275,2709.3,2709.1,0.45512924]
[1739523551244,1.19208275,2709.3,2709.1,0.11092314]
[1739523552648,4.88314275,2709.3,2708.8,3.69162]
[1739523552850,1.19208275,2709.1,2708.8,3.69162]
[1739523553079,1.19208275,2709.1,2708.8,4.444971]
[1739523553277,1.19208275,2709.1,2708.9,3.69153]
[1739523553484,1.19208275,2709.1,2708.9,0.34434085]
[1739523554968,1.19208275,2709.1,2709.0,0.34434085]
[1739523556685,1.19208275,2709.3,2709.0,4.03573085]
[1739523556886,1.19208275,2709.3,2709.0,4.43930394]
[1739523557087,1.19208275,2709.3,2709.0,4.03573085]
[1739523557715,1.19208275,2709.3,2709.0,0.34434085]
[1739523558376,1.19208275,2709.3,2709.1,0.34434085]
[1739523558710,4.88318275,2709.3,2709.1,0.34434085]
[1739523559362,4.88318275,2709.3,2709.2,0.11070458]
[1739523560010,4.88318275,2709.3,2708.9,3.69153]
[1739523560011,4.88318275,2709.3,2708.8,7.38313]
[1739523560215,4.88318275,2709.3,2709.2,0.11070458]
[1739523560505,1.19208275,2709.3,2708.7,0.87606186]
[1739523560715,1.19208275,2709.3,2709.2,0.11070458]
[1739523560874,1.19208275,2709.3,2709.0,3.69131]
[1739523561059,1.3146,2709.4,2709.2,3.80182903]
[1739523561254,0.55,2709.4,2709.1,0.11079838]
[1739523561459,0.55,2709.4,2709.1,3.69126]
[1739523561685,0.55,2709.4,2709.2,0.11070903]
[1739523564529,0.55,2709.4,2709.2,3.80172903]
[1739523564730,0.55,2709.4,2709.3,3.69099]
[1739523565232,0.55,2709.4,2709.3,0.11061969]
[1739523565576,0.55,2709.4,2709.3,0.45473434]
[1739523566890,0.55,2709.4,2709.3,0.11061969]
[1739523567119,0.55,2709.4,2709.2,3.69112]
[1739523567324,0.55,2709.4,2709.3,0.11043259]
[1739523568033,0.55,2709.4,2709.3,3.80142259]
[1739523568243,0.55,2709.4,2709.3,4.55067585]
[1739523569552,0.55,2709.4,2709.3,4.89462953]
[1739523573231,0.55,2709.4,2709.3,1.20363953]
[1739523573632,0.55,2709.4,2709.3,1.96095437]
[1739523574194,0.55,2709.4,2709.3,1.20363953]
[1739523574506,0.55,2709.4,2709.3,0.45438627]
[1739523574782,0.55,2709.4,2709.3,4.14537627]
[1739523575538,0.55,2709.4,2709.3,0.45438627]
[1739523576895,0.55,2709.4,2709.3,4.14537627]
[1739523578567,0.55,2709.4,2709.3,0.45438627]
[1739523580585,0.55,2709.4,2709.3,0.11043259]
[1739523580954,0.55,2709.4,2709.1,4.44256236]
[1739523581156,1.19208275,2709.3,2709.1,8.9621406]
[1739523581537,1.19208275,2709.3,2709.2,4.03507745]
[1739523589386,1.19208275,2709.3,2709.2,0.34395745]
[1739523589588,1.19208275,2709.3,2709.2,0.45430121]
[1739523589744,2.02368275,2709.3,2709.2,0.45430121]
[1739523601486,5.71467275,2709.3,2709.2,0.45430121]
[1739523601880,2.02368275,2709.3,2709.2,0.45430121]
[1739523602379,6.29362503,2709.3,2709.2,0.45430121]
[1739523603256,2.60263503,2709.3,2709.2,0.45430121]
[1739523604055,6.29362503,2709.3,2709.2,0.11034376]
[1739523607721,2.60263503,2709.3,2709.2,0.11034376]
[1739523607872,6.29362503,2709.3,2709.2,0.11034376]
[1739523611508,6.24382503,2709.3,2709.2,0.11034376]
[1739523612191,1.98138275,2709.3,2709.2,0.11034376]
[1739523612391,5.67237275,2709.3,2709.2,0.11034376]
[1739523614196,1.98138275,2709.3,2709.2,0.11034376]
[1739523615103,1.19958275,2709.3,2709.2,0.11034376]
[1739523616298,1.19208275,2709.3,2709.2,0.11034376]
[1739523616501,1.19208275,2709.5,2709.2,0.26034376]
[1739523616776,1.19208275,2709.5,2709.2,3.95146376]
[1739523616978,1.19208275,2709.5,2709.2,4.29571795]
[1739523618078,1.19208275,2709.5,2709.3,0.34425419]
[1739523618253,1.19208275,2709.5,2709.3,0.45469122]
[1739523619284,1.19208275,2709.5,2709.3,0.11043703]
[1739523619587,4.50685,2709.4,2709.1,2.496]
[1739523619754,1.19208275,2709.2,2709.1,2.496]
[1739523620267,1.19208275,2709.2,2709.1,2.84028363]
[1739523621883,1.19208275,2709.2,2709.1,2.496]
[1739523622051,4.88320275,2709.2,2709.1,2.496]
[1739523623452,5.69920275,2709.2,2709.1,2.496]
[1739523624589,1.19208275,2709.2,2709.1,2.496]
[1739523626401,5.82222103,2709.2,2709.1,2.496]
[1739523626602,2.13110103,2709.2,2709.1,2.496]
[1739523626808,1.19208275,2709.2,2709.1,2.496]
[1739523627669,1.19208275,2709.4,2709.1,2.646]
[1739523627871,1.19208275,2709.4,2709.1,6.33724]
[1739523628361,1.19208275,2709.4,2709.1,6.68163753]
[1739523628613,1.19208275,2709.4,2709.1,2.99039753]
[1739523628963,1.19208275,2709.2,2709.1,2.84039753]
[1739523629305,1.19208275,2709.2,2709.1,2.95107563]
[1739523630578,4.88320275,2709.2,2709.1,2.95107563]
[1739523631003,4.88320275,2709.2,2709.1,2.6066781]
[1739523632908,1.19208275,2709.2,2709.1,2.6066781]
[1739523633115,4.88320275,2709.2,2709.1,2.6066781]
[1739523638879,8.82972203,2709.2,2709.1,2.6066781]
[1739523639133,10.79360478,2709.2,2709.1,2.6066781]
[1739523639339,10.79360478,2709.2,2709.1,2.496]
[1739523639543,9.60152203,2709.2,2709.1,2.496]
[1739523641300,18.88160478,2709.2,2709.1,2.496]
[1739523641506,17.68952203,2709.2,2709.1,2.496]
[1739523641820,18.95727017,2709.2,2709.1,2.496]
[1739523642824,13.72193928,2709.2,2709.1,2.496]
[1739523644147,15.94743928,2709.2,2709.1,2.496]
[1739523644297,16.49743928,2709.2,2709.1,2.496]
[1739523649422,0.0075,2708.4,2708.0,0.15]
[1739523649631,3.69253,2708.2,2708.1,0.10804351]
[1739523649802,3.69253,2708.2,2708.0,0.15]
[1739523650007,3.69262,2708.1,2707.8,1.2306473]
[1739523651051,2.46733089,2708.0,2707.8,1.0806473]
[1739523651252,3.70039,2707.9,2707.8,1.0806473]
[1739523653505,0.0075,2707.9,2707.8,1.0806473]
[1739523654030,2.45983089,2708.0,2707.8,1.2306473]
[1739523654841,3.70039,2707.9,2707.8,1.2306473]
[1739523655043,0.0075,2707.9,2707.8,1.0806473]
[1739523655426,3.70039,2707.9,2707.8,1.0806473]
[1739523656058,6.15268089,2708.0,2707.8,1.0806473]
[1739523656059,2.45983089,2708.0,2707.8,1.0806473]
[1739523656254,2.45983089,2708.0,2707.9,0.15]
[1739523656955,5.32,2708.1,2707.9,0.15]
[1739523657367,5.32,2708.1,2707.9,3.84289]
[1739523657554,5.32,2708.1,2707.9,0.15]
[1739523659059,5.31778528,2708.1,2707.9,0.15]
[1739523659287,5.31778528,2708.1,2708.0,0.10886597]
[1739523661693,3.0,2708.2,2708.0,0.10886597]
[1739523661899,6.69249,2708.2,2708.0,0.10886597]
[1739523662258,3.0,2708.2,2708.0,0.10886597]
[1739523662678,6.69248,2708.2,2708.0,0.10886597]
[1739523663505,3.0,2708.2,2708.0,0.10886597]
[1739523663873,6.69248,2708.2,2708.0,0.10886597]
[1739523664055,3.0,2708.2,2708.0,0.10886597]
[1739523665804,3.0,2708.2,2707.9,3.84289]
[1739523666004,3.0,2708.2,2708.1,0.10886098]
[1739523666209,3.0,2708.2,2708.0,0.1089504]
[1739523666505,3.0,2708.2,2708.1,0.10886098]
[1739523666960,2.45983089,2708.6,2707.9,0.15]
[1739523667163,0.761,2708.8,2708.4,0.15]
[1739523667365,7.77761617,2708.9,2708.5,3.692]
[1739523667603,5.31778528,2708.9,2708.5,3.692]
[1739523667768,5.31778528,2708.9,2708.6,3.80028619]
[1739523667965,1.37986015,2709.0,2708.6,3.80028619]
[1739523668161,1.19221713,2709.0,2708.7,3.84176]
[1739523668479,1.19221713,2709.0,2708.8,0.10816855]
[1739523668697,0.7685,2708.9,2708.4,0.15]
[1739523668925,1.19221713,2708.6,2708.4,0.15]
[1739523669558,4.46003,2708.9,2708.4,3.8422]
[1739523670425,2.45944768,2709.0,2708.5,4.445406]
[1739523670702,2.45944768,2709.0,2708.7,3.6918]
[1739523671672,2.45944768,2709.0,2708.6,0.15]
[1739523671885,2.45944768,2709.0,2708.6,3.84194]
[1739523672218,2.45944768,2709.0,2708.6,0.15]
[1739523673943,6.15084768,2709.0,2708.6,0.15]
[1739523674343,3.69153,2708.9,2708.7,0.10825792]
[1739523674644,6.15084768,2709.0,2708.7,0.10825792]
[1739523675836,2.45944768,2709.0,2708.7,0.10825792]
[1739523676342,3.0075,2709.2,2708.7,0.87247671]
[1739523676575,3.0,2709.2,2708.8,3.84159]
[1739523676706,2.45944768,2709.3,2708.8,0.15]
[1739523676900,11.46789296,2709.6,2709.0,3.69133]
[1739523677134,0.0075,2709.5,2709.1,0.15]
[1739523677330,3.0075,2709.5,2709.1,0.25790046]
[1739523677495,6.6983,2709.5,2709.1,0.25790046]
[1739523678759,3.0075,2709.5,2709.1,3.94909046]
[1739523679343,3.0075,2709.5,2709.1,0.25790046]
[1739523679545,6.69073,2709.5,2709.1,0.25790046]
[1739523680210,3.0,2709.5,2709.1,0.25790046]
[1739523680551,3.0,2709.5,2709.1,3.94913046]
[1739523682651,6.69075,2709.5,2709.1,0.25790046]
[1739523682953,2.07397777,2709.4,2707.8,1.0806473]
[1739523683103,2.45944768,2708.2,2707.8,1.0806473]
[1739523684762,6.15194768,2708.2,2707.8,1.0806473]
[1739523685146,2.45944768,2708.2,2707.8,1.0806473]
[1739523686250,6.15201768,2708.2,2707.8,1.0806473]
[1739523688180,2.45944768,2708.2,2707.8,1.0806473]
[1739523688484,3.69238,2708.3,2707.8,1.0806473]
[1739523688984,3.69249,2708.2,2707.8,1.0806473]
[1739523689155,3.69238,2708.3,2707.8,1.0806473]
[1739523689558,7.38483,2708.3,2707.8,1.0806473]
[1739523689853,3.69238,2708.3,2707.8,1.0806473]
[1739523690057,3.69249,2708.2,2707.8,1.0806473]
[1739523690677,3.69249,2708.2,2707.9,0.09687639]
[1739523691313,3.69262,2708.1,2707.9,0.09687639]
[1739523693418,3.69242,2708.3,2707.9,0.09687639]
[1739523693781,3.69242,2708.3,2707.8,1.0806473]
[1739523693980,3.69242,2708.3,2708.0,0.09680912]
[1739523694319,3.69242,2708.3,2708.1,0.09671969]
[1739523694824,3.69242,2708.3,2707.8,4.7735573]
[1739523695032,0.0075,2708.4,2708.2,0.09663028]
[1739523695337,3.69238,2708.3,2707.8,1.0806473]
[1739523695640,3.87482706,2708.3,2707.8,4.7735673]
[1739523695855,0.18244706,2708.3,2707.9,3.69287]
[1739523696339,3.87480706,2708.3,2707.8,4.7736373]
[1739523698642,3.69236,2708.3,2707.8,5.63530703]
[1739523699145,3.69236,2708.3,2707.9,3.69288]
[1739523700654,3.69223,2708.4,2707.9,3.69288]
[1739523700812,3.69217,2708.5,2708.0,3.69267]
[1739523701018,4.48164,2708.8,2708.1,0.03692499]
[1739523701219,4.48164,2708.8,2708.3,3.69233]
[1739523701815,3.69174,2708.8,2708.3,3.69233]
[1739523702105,3.69174,2708.8,2708.3,4.445816]
[1739523703201,0.18020214,2709.0,2708.6,3.6919]
[1739523703836,9.01656528,2709.1,2708.6,3.69186]
[1739523704345,5.31778528,2709.1,2708.7,3.78817002]
[1739523704545,3.69121,2709.2,2708.7,0.09644002]
[1739523704905,3.69133,2709.1,2708.7,0.09644002]
[1739523705231,3.69146,2709.0,2708.7,0.09644002]
[1739523705606,3.69146,2709.0,2708.5,3.84199]
[1739523705843,3.69146,2709.0,2708.8,0.09635065]
[1739523706048,3.69146,2709.0,2708.5,3.84199]
[1739523706247,3.69146,2709.0,2708.9,0.09626128]
[1739523706420,3.69146,2709.0,2708.5,3.84199]
[1739523706619,3.69146,2709.0,2708.9,0.09626128]
[1739523707109,3.69146,2709.0,2708.5,3.84199]
[1739523707309,3.69146,2709.0,2708.6,0.0965294]
[1739523708945,3.69118,2709.2,2708.6,3.7884594]
[1739523709150,3.69125,2709.2,2708.6,7.4803194]
[1739523709483,3.69126,2709.1,2708.6,0.0965294]
[1739523709953,3.69138,2709.1,2708.6,0.0965294]
[1739523710157,4.429643,2709.1,2708.6,0.0965294]
[1739523710559,3.69125,2709.2,2708.6,0.0965294]
[1739523710709,3.6914,2709.0,2708.6,0.0965294]
[1739523711852,3.6914,2709.0,2708.6,3.7884694]
[1739523712161,3.0,2709.3,2708.8,3.69166]
[1739523712375,6.69101,2709.3,2708.9,0.15]
[1739523712517,3.69113,2709.2,2708.9,0.24626128]
[1739523715248,8.5888373,2709.3,2708.9,0.24626128]
[1739523716131,3.69113,2709.2,2708.9,0.24626128]
[1739523716466,8.5888573,2709.3,2708.9,0.24626128]
[1739523716627,3.6906,2709.6,2709.1,3.69114]
[1739523716827,0.99962423,2709.7,2709.2,0.15]
[1739523717050,3.69058,2709.6,2709.2,0.24546629]
[1739523717241,4.51409,2709.3,2709.2,0.09546629]
[1739523717414,5.58053777,2709.3,2709.2,0.09546629]
[1739523717614,3.6913,2709.1,2708.6,3.84186]
[1739523718015,3.6913,2709.1,2708.7,0.09251955]
[1739523720019,9.27166777,2709.3,2708.8,3.69167]
[1739523720332,9.27166777,2709.3,2708.9,0.09234081]
[1739523720531,1.88204777,2709.3,2708.9,0.09234081]
[1739523720771,4.50665,2709.3,2708.9,0.09234081]
[1739523721363,3.69105,2709.3,2708.9,0.09234081]
[1739523721557,9.00851528,2709.5,2709.0,3.84136]
[1739523721558,9.82411528,2709.5,2709.0,3.84136]
[1739523721901,9.82411528,2709.5,2709.1,0.09214884]
[1739523722258,9.00851528,2709.5,2709.1,0.09214884]
[1739523723914,12.69932528,2709.5,2709.1,0.09214884]
[1739523724215,9.00851528,2709.5,2709.1,0.09214884]
[1739523724377,10.14960191,2709.7,2709.1,0.09214884]
[1739523724378,3.69058,2709.6,2709.1,0.09214884]
[1739523724583,3.69065,2709.6,2709.1,3.78330884]
[1739523724798,3.69065,2709.6,2709.1,4.62127065]
[1739523724996,3.69082,2709.5,2709.1,0.93011065]
[1739523725320,3.6909,2709.4,2709.1,0.09214884]
[1739523725519,3.69082,2709.5,2709.1,0.09214884]
[1739523725814,7.14959191,2709.7,2709.1,3.78339884]
[1739523726114,3.69061,2709.6,2709.1,3.78339884]
[1739523726312,4.69014423,2709.7,2709.2,3.69102]
[1739523726472,0.99962423,2709.7,2709.3,0.09191277]
[1739523726672,0.8173,2710.0,2709.4,0.15]
[1739523726878,5.31778528,2710.2,2709.8,0.15]
[1739523727211,5.31778528,2710.4,2709.9,7.47159831]
[1739523727410,9.00734528,2710.4,2709.9,3.78142831]
[1739523728168,0.55,2710.6,2710.0,0.54314283]
[1739523728410,4.23929,2710.6,2710.0,7.52987]
[1739523728612,4.23929,2710.6,2710.0,3.83991]
[1739523728817,4.23929,2710.6,2710.1,0.09114972]
[1739523729359,0.55,2710.6,2710.2,3.68975]
[1739523729560,0.55,2710.6,2710.3,0.52808997]
[1739523729705,4.23925,2710.6,2710.3,0.24010634]
[1739523730732,3.68936,2710.5,2710.3,0.24010634]
[1739523731155,0.55,2710.6,2710.3,0.15]
[1739523731310,4.23922,2710.6,2710.3,0.15]
[1739523731512,4.23922,2710.6,2710.4,0.09001707]
[1739523731761,3.68935,2710.5,2710.4,0.09001707]
[1739523732255,0.55,2710.6,2710.4,0.09001707]
[1739523732456,4.23922,2710.6,2710.4,0.09001707]
[1739523732680,0.55,2710.6,2710.4,0.09001707]
[1739523733573,7.92859,2710.6,2710.4,0.09001707]
[1739523733726,4.23929,2710.6,2710.4,0.09001707]
[1739523734271,0.55,2710.6,2710.4,0.09001707]
[1739523736582,0.55,2710.6,2710.3,0.15]
[1739523736739,0.55,2710.6,2710.5,0.08992781]
[1739523736936,0.55,2710.6,2710.3,4.223586]
[1739523737141,0.55,2710.6,2710.4,0.09001707]
[1739523737784,0.55,2710.6,2710.5,3.83935]
[1739523738078,0.55,2710.6,2710.5,3.92927781]
[1739523738241,0.55,2710.6,2710.5,4.72956419]
[1739523738445,0.55,2710.6,2710.5,1.04021419]
[1739523739278,0.55,2710.6,2710.5,4.72956419]
[1739523739573,0.55,2710.6,2710.5,1.04021419]
[1739523739784,0.55,2710.6,2710.5,0.23992781]
[1739523741041,3.00944768,2710.6,2710.5,0.08992781]
[1739523741243,6.69866768,2710.6,2710.5,0.08992781]
[1739523741454,3.00944768,2710.6,2710.2,0.15]
[1739523741671,0.55,2710.6,2710.5,0.08971614]
[1739523741870,0.55,2710.6,2710.2,0.15]
[1739523742037,0.55,2710.6,2710.5,0.08954418]
[1739523743667,0.55,2710.6,2710.5,0.37790242]
[1739523743939,0.55,2710.6,2710.5,0.4674466]
[1739523745491,0.55,2710.6,2710.5,0.08954418]
[1739523745666,0.55,2710.6,2710.5,3.77889418]
[1739523746302,0.55,2710.6,2710.5,3.92889418]
[1739523748726,0.55,2710.6,2710.5,4.47889418]
[1739523748925,0.55,2710.6,2710.5,4.82031114]
[1739523749113,0.55,2710.6,2710.5,5.67129025]
[1739523749727,0.55,2710.6,2710.5,8.67129025]
[1739523751102,0.55,2710.6,2710.5,9.42443666]
[1739523753429,0.55,2710.6,2710.5,8.87443666]
[1739523753955,0.55,2710.6,2710.5,9.42443666]
[1739523758253,0.55,2710.6,2710.5,9.43193666]
[1739523759650,0.55,2710.6,2710.5,14.68193666]
[1739523761024,0.55,2710.6,2710.5,14.13193666]
[1739523761224,0.55,2710.6,2710.5,14.2114866]
[1739523765979,0.55,2710.6,2710.5,14.2039866]
[1739523766870,0.55,2710.6,2710.5,14.2114866]
[1739523772799,0.7671,2711.4,2710.6,0.55]
[1739523773002,0.7671,2711.4,2711.3,3.68826]
[1739523773506,0.7671,2711.4,2711.3,3.76706521]
[1739523773857,0.7671,2711.4,2711.3,4.10848217]
[1739523774101,0.7671,2711.4,2711.3,0.42022217]
[1739523774875,0.7671,2711.4,2711.3,4.10848217]
[1739523775080,0.7751,2711.6,2711.4,3.68806]
[1739523775484,0.7751,2711.6,2711.5,0.07862681]
[1739523776405,0.7751,2711.6,2711.5,4.10910898]
[1739523777208,0.7751,2712.1,2711.7,3.68762]
[1739523777405,0.7751,2712.1,2711.8,3.6875]
[1739523777609,0.7751,2712.1,2711.7,3.68762]
[1739523777797,0.7751,2712.1,2711.9,0.0781467]
[1739523777964,0.7751,2712.1,2711.8,0.07823588]
[1739523778708,0.7751,2712.1,2711.8,3.76581588]
[1739523780113,0.7751,2712.1,2711.8,0.07823588]
[1739523780518,0.7751,2712.1,2711.6,3.68781]
[1739523780666,0.7751,2712.1,2711.9,0.0781467]
[1739523781011,0.7751,2712.1,2712.0,0.07781082]
[1739523781375,0.7751,2712.1,2711.7,3.68763]
[1739523781560,0.7751,2712.1,2711.8,0.07798916]
[1739523781967,3.68732,2712.0,2711.8,0.07798916]
[1739523782170,0.7751,2712.1,2711.5,0.74872904]
[1739523782519,0.7751,2711.9,2711.6,0.07816752]
[1739523783410,0.7751,2711.9,2711.6,3.76593752]
[1739523783986,0.7751,2711.9,2711.7,3.6877]
[1739523784199,0.7751,2711.9,2711.8,0.07798916]
[1739523785728,0.7751,2711.9,2711.7,3.6876]
[1739523785886,0.7751,2711.9,2711.8,3.76556916]
[1739523786087,0.7751,2711.9,2711.8,0.07798916]
[1739523786883,0.7751,2711.9,2711.8,0.42058359]
[1739523787524,0.8309,2712.2,2711.9,3.68735]
[1739523788083,0.8309,2712.2,2712.0,0.07781082]
[1739523788289,0.8309,2712.2,2712.0,3.76505082]
[1739523788497,3.18164322,2712.4,2712.0,3.76503082]
[1739523788498,0.8309,2712.4,2712.0,3.76503082]
[1739523788703,0.8309,2712.4,2712.1,3.68705]
[1739523789132,0.8309,2712.4,2712.2,0.07737702]
[1739523789333,0.8309,2712.4,2712.2,4.10670425]
[1739523789705,0.8309,2712.4,2712.2,0.41967425]
[1739523790831,0.8309,2712.4,2712.2,0.76226868]
[1739523791434,0.8309,2712.4,2712.2,0.41997145]
[1739523791607,0.8309,2712.4,2712.2,1.14880546]
[1739523791802,0.8309,2712.4,2712.2,4.83582546]
[1739523791996,0.8309,2712.4,2712.2,4.49323103]
[1739523792622,0.8309,2712.4,2712.2,0.80621103]
[1739523796348,0.8309,2712.4,2712.2,4.49316103]
[1739523796564,0.8309,2712.4,2712.3,3.6869]
[1739523796772,0.8309,2712.7,2712.3,3.76393245]
[1739523798691,0.8309,2712.7,2712.3,3.76387245]
[1739523798846,0.8309,2712.7,2712.4,3.68666]
[1739523799191,0.8309,2712.7,2712.5,0.07685418]
[1739523800068,0.8309,2712.7,2712.5,3.76346418]
[1739523800894,0.8309,2712.7,2712.5,0.07685418]
[1739523801563,0.8309,2712.7,2712.5,3.76348418]
[1739523802470,0.8309,2712.7,2712.5,0.07685418]
[1739523804049,0.8309,2712.7,2712.4,3.68669]
[1739523804248,0.8309,2712.7,2712.6,0.07676505]
[1739523804449,0.8309,2712.7,2712.5,0.07685418]
[1739523804791,0.8309,2712.7,2712.6,0.07676505]
[1739523804988,0.8309,2712.7,2712.5,3.68661]
[1739523805195,0.8309,2712.7,2712.6,0.07676505]
[1739523805788,0.8309,2712.7,2712.3,3.68684]
[1739523805995,0.8309,2712.7,2712.4,3.76370331]
[1739523807692,0.8309,2712.7,2712.4,3.76364331]
[1739523807907,0.8309,2712.7,2712.6,3.6865]
[1739523808109,0.8309,2712.7,2712.4,3.76364331]
[1739523808433,0.1468444,2712.8,2712.5,0.07685418]
[1739523808609,0.1468444,2712.8,2712.6,4.06285542]
[1739523808933,0.1468444,2712.8,2712.7,0.07651747]
[1739523812772,0.1468444,2712.8,2712.4,3.6867]
[1739523812972,0.1468444,2712.8,2712.5,0.07669571]
[1739523813380,3.8330744,2712.8,2712.5,0.07669571]
[1739523813710,3.6865,2712.6,2712.5,0.07669571]
[1739523813872,4.4633,2712.6,2712.5,0.07669571]
[1739523815404,0.7768,2712.5,2712.1,0.34237668]
[1739523815608,0.7768,2712.5,2712.1,0.37924455]
[1739523815808,3.8331844,2712.8,2712.2,3.6869]
[1739523815975,0.7768,2712.7,2712.2,3.6869]
[1739523816181,0.7768,2712.7,2712.3,3.68681]
[1739523816417,3.68677,2712.4,2712.2,0.34206041]
[1739523816720,6.92314768,2712.3,2712.2,0.34206041]
[1739523817025,7.98413945,2712.3,2712.2,0.34206041]
[1739523817180,10.99163945,2712.3,2712.2,0.34206041]
[1739523817597,3.68772,2711.7,2711.6,0.34206041]
[1739523817813,4.46452,2711.7,2711.6,0.34206041]
[1739523818896,4.46452,2711.7,2711.3,0.34206041]
[1739523818897,7.46479,2711.5,2711.3,0.34206041]
[1739523819100,9.93187768,2711.4,2711.3,0.34206041]
[1739523819779,3.68862,2711.1,2710.7,0.34206041]
[1739523820010,0.7768,2711.0,2710.7,0.34206041]
[1739523820193,3.68831,2711.3,2710.7,0.74520045]
[1739523820398,0.7768,2711.3,2710.8,3.68894]
[1739523821422,0.7768,2711.3,2710.7,0.74520045]
[1739523821727,4.46507,2711.3,2710.7,4.09222004]
[1739523822503,4.46507,2711.3,2710.5,0.7353256]
[1739523822826,3.68865,2711.1,2710.5,0.7353256]
[1739523823033,3.68865,2711.1,2710.5,4.4246256]
[1739523823412,3.68865,2711.1,2710.6,3.68919]
[1739523823808,3.68865,2711.1,2710.5,0.7353256]
[1739523824013,3.68867,2711.0,2710.5,0.7353256]
[1739523824544,0.7768,2710.9,2710.6,0.07288843]
[1739523826650,0.7768,2710.9,2710.6,3.76199843]
[1739523826829,0.7768,2710.9,2710.6,0.07288843]
[1739523828922,0.7768,2710.9,2710.6,3.76209843]
[1739523829331,0.7768,2710.9,2710.6,0.07288843]
[1739523829912,0.7768,2710.9,2710.6,3.76206843]
[1739523831219,0.7768,2710.9,2710.6,0.07288843]
[1739523833760,4.46561,2710.9,2710.6,0.07288843]
[1739523834167,0.7768,2710.9,2710.6,3.76208843]
[1739523834403,0.7768,2710.9,2710.6,0.07288843]
[1739523835110,4.46564,2710.9,2710.4,3.68936]
[1739523835317,4.46564,2710.9,2710.7,0.07337925]
[1739523835505,4.46564,2710.9,2710.4,3.68936]
[1739523835687,5.281071,2710.9,2710.8,0.07329]
[1739523835889,0.7979,2710.6,2710.3,0.74657842]
[1739523836301,0.7979,2710.6,2710.4,0.07364702]
[1739523840635,0.7979,2710.9,2710.3,0.74657842]
[1739523840785,4.48677,2710.9,2710.5,0.07355776]
[1739523840989,8.17567,2710.9,2710.4,3.76312702]
[1739523841253,4.48677,2710.9,2710.6,0.0734685]
[1739523841461,4.48677,2710.9,2710.4,3.68948]
[1739523841655,0.7979,2710.9,2710.7,0.07337925]
[1739523841879,0.7979,2710.9,2710.5,3.68935]
[1739523842012,0.7979,2710.9,2710.8,0.07342193]